[Event "2nd European Youth GP 2017"]
[Site "Jermuk"]
[Date "2017.10.07"]
[Round "5"]
[White "Zarubitski, Viachaslau"]
[Black "Nesterov, Arseniy"]
[Result "1/2-1/2"]
[ECO "C77"]
[WhiteElo "2311"]
[BlackElo "2350"]
[Annotator "NA"]
[PlyCount "192"]
[EventDate "2017.??.??"]
[EventType "tourn"]
[EventCountry "ARM"]
[SourceTitle "playchess.com"]
[Source "ChessBase"]
[SourceQuality "1"]
[TimeControl "5400+30"]

1. e4 {[%emt 0:00:00]} e5 {[%emt 0:00:04]} 2. Nf3 {[%emt 0:00:00]} Nc6 {[%emt 0:00:03]} 3. Bb5 {[%emt 0:00:00]} a6 {[%emt 0:00:08]} 4. Ba4 {[%emt 0:00:00]} Nf6 {[%emt 0:00:06]} 5. O-O {[%emt 0:00:00]} b5 {[%emt 0:00:03]} 6. Bb3 {[%emt 0:00:05]} Bc5 {[%emt 0:00:06]} 7. Nc3 {[%emt 0:00:49]} d6 {[%emt 0:01:50] C77: Ruy Lopez: 3...a6 4 Ba4 Nf6, unusual lines} (7... O-O 8. d3 d6 9. Nd5 h6 10. c3 Rb8 11. Re1 Ba7 12. Be3 Bxe3 13. Nxe3 Re8 14. a4 b4 15. a5 bxc3 16. bxc3 {½-½ (66) Anand,V (2783)-Carlsen,M (2822) Saint Louis 2017}) 8. Nd5 {[%emt 0:00:03]} h6 {[%emt 0:06:08]} 9. c3 {[%emt 0:02:16] LiveBook: 8 Games} Ba7 {[%emt 0:15:37]} ({Viel schwächer wäre} 9... Nxe4 10. d4 $16) 10. d4 {[%emt 0:11:46]} Bd7 $146 {[%emt 0:03:11]} ({Predecessor:} 10... O-O 11. Nxf6+ Qxf6 12. Bd5 Bd7 13. Be3 Rad8 14. a4 exd4 15. cxd4 {1-0 (29) Jovanovic,Z (2529)-Rusche,J (2263) Schwarzach 2016}) 11. dxe5 {[%emt 0:03:28]} Nxe5 {[%emt 0:06:58]} 12. Nxe5 {[%emt 0:00:38]} dxe5 {[%emt 0:00:06]} 13. Qf3 {[%emt 0:00:08]} c6 $1 {[%emt 0:03:26]} 14. Nxf6+ {[%emt 0:06:44]} Qxf6 {[%emt 0:00:07]} 15. Qxf6 {[%emt 0:00:13]} gxf6 {[%emt 0:00:05]} 16. Kh1 {[%emt 0:00:02]} Be6 {[%emt 0:12:15]} 17. f4 {[%emt 0:00:18]} Ke7 {[%emt 0:02:06]} 18. fxe5 {[%emt 0:24:41]} fxe5 {[%emt 0:00:06]} 19. Bd2 {[%emt 0:00:02]} f6 {[%emt 0:07:21]} 20. Bxe6 {[%emt 0:08:26]} Kxe6 {[%emt 0:00:05]} 21. Rf3 {[%emt 0:00:05]} Bc5 {[%emt 0:05:49]} 22. Raf1 {[%emt 0:05:32]} Be7 {[%emt 0:00:05]} 23. Kg1 {[%emt 0:03:37]} Rad8 {[%emt 0:01:13]} 24. Be3 {[%emt 0:00:20]} Rd3 {[%emt 0:01:38]} 25. Kf2 {[%emt 0:00:41]} c5 {[%emt 0:01:03]} 26. Rh3 $11 {[%emt 0:04:35]} Rg8 {[%emt 0:07:23]} 27. g3 {[%emt 0:06:28]} Rg4 {[%emt 0:00:10]} 28. Kf3 {[%emt 0:00:16]} Rg6 {[%emt 0:00:17]} 29. Ke2 {[%emt 0:00:39]} c4 {[%emt 0:00:07]} 30. Rh4 {[%emt 0:00:36]} Bf8 {[%emt 0:02:22]} 31. Rf5 {[%emt 0:00:39]} a5 {[%emt 0:00:29]} 32. Rf1 {[%emt 0:04:31]} Kf7 {[%emt 0:09:58]} 33. Rd1 {[%emt 0:01:48]} Rxd1 {[%emt 0:00:20]} 34. Kxd1 {[%emt 0:00:02]} Ke6 {[%emt 0:02:17]} 35. Ke2 {[%emt 0:00:35]} b4 {[%emt 0:00:19]} 36. Rh5 {[%emt 0:06:13]} Rg4 {[%emt 0:06:30]} 37. Bxh6 {[%emt 0:00:37]} Bxh6 {[%emt 0:00:22]} 38. Rxh6 {[%emt 0:00:01]} Rxe4+ {[%emt 0:00:07]} 39. Kd2 {[%emt 0:02:19]} Rg4 {[%emt 0:03:29]} 40. Rh8 {[%emt 0:00:26]} Rg7 {[%emt 0:00:34]} 41. cxb4 {[%emt 0:01:34]} axb4 {[%emt 0:00:03]} 42. Rb8 {[%emt 0:00:02]} Rd7+ {[%emt 0:01:58]} 43. Kc2 {[%emt 0:05:25]} Rh7 {[%emt 0:00:56]} 44. h4 {[%emt 0:00:12]} Rg7 {[%emt 0:00:07]} 45. Rxb4 {[%emt 0:00:04]} Kd5 {[%emt 0:00:13]} 46. a4 {[%emt 0:01:28]} Rxg3 {[%emt 0:00:45]} 47. a5 {[%emt 0:00:09]} Rg2+ {[%emt 0:00:57]} 48. Kc3 {[%emt 0:00:39]} Rg3+ {[%emt 0:00:11]} 49. Kd2 {[%emt 0:00:34]} Kc5 {[%emt 0:03:58]} 50. Rb8 {[%emt 0:01:04]} Rg2+ {[%emt 0:01:22]} 51. Ke3 {[%emt 0:02:19]} Rg3+ {[%emt 0:00:05]} 52. Kf2 {[%emt 0:00:33]} Rg7 {[%emt 0:00:04]} 53. h5 {[%emt 0:00:05]} Ra7 {[%emt 0:01:22]} 54. h6 {[%emt 0:00:10]} Rh7 {[%emt 0:00:12]} 55. a6 {[%emt 0:00:12]} Kc6 {[%emt 0:00:12]} 56. Kf3 {[%emt 0:02:37]} f5 {[%emt 0:00:03]} 57. Ke3 {[%emt 0:00:12]} Kc5 {[%emt 0:00:46]} 58. Kf3 {[%emt 0:01:00]} Kc6 {[%emt 0:00:04]} 59. Ke2 {[%emt 0:00:06]} Kc5 {[%emt 0:00:26]} 60. Ke3 {[%emt 0:00:04]} Kc6 {[%emt 0:00:12]} 61. Ke2 {[%emt 0:01:05]} Kc5 {[%emt 0:00:05]} 62. Kf2 {[%emt 0:00:02]} Kc6 {[%emt 0:00:11]} 63. Kf3 {[%emt 0:01:17]} Kc5 {[%emt 0:00:29]} 64. Kg2 {[%emt 0:00:01]} Kc6 {[%emt 0:00:32]} 65. Rb4 {[%emt 0:01:03]} e4 {[%emt 0:02:18]} 66. Ra4 {[%emt 0:00:30]} Rh8 {[%emt 0:00:24]} 67. a7 {[%emt 0:00:03]} Ra8 {[%emt 0:00:03]} 68. h7 {[%emt 0:00:08]} Kb7 {[%emt 0:00:02]} 69. Kg3 {[%emt 0:00:10]} e3 {[%emt 0:00:12]} 70. Kf3 {[%emt 0:00:03]} f4 {[%emt 0:00:05]} 71. Ke2 {[%emt 0:00:01]} f3+ {[%emt 0:01:00]} 72. Kxe3 {[%emt 0:00:51]} Re8+ {[%emt 0:00:06]} 73. Kxf3 {[%emt 0:00:03]} Ka8 {[%emt 0:00:03]} 74. Rxc4 {[%emt 0:00:06]} Rh8 {[%emt 0:00:02]} 75. Ra4 {[%emt 0:00:49]} Rxh7 {[%emt 0:00:05]} 76. Ke3 {[%emt 0:00:56]} Rb7 {[%emt 0:02:08]} 77. Ra2 {[%emt 0:00:04]} Rd7 {[%emt 0:00:16]} 78. Ke2 {[%emt 0:00:36]} Rd6 {[%emt 0:01:46]} 79. Ke3 {[%emt 0:01:58]} Rd7 {[%emt 0:00:14]} 80. Ke4 {[%emt 0:00:04]} Rd2 {[%emt 0:00:26]} 81. Ke5 {[%emt 0:00:04]} Rd7 {[%emt 0:00:21]} 82. Ke6 {[%emt 0:00:14]} Rd2 {[%emt 0:00:11]} 83. Ke7 {[%emt 0:00:09]} Rd4 {[%emt 0:01:56]} 84. Ra3 {[%emt 0:00:40]} Rb4 {[%emt 0:00:15]} 85. Ra2 {[%emt 0:00:41]} Rd4 {[%emt 0:00:04]} 86. Ra3 {[%emt 0:01:32]} Rb4 {[%emt 0:00:05]} 87. b3 {[%emt 0:00:04]} Rd4 {[%emt 0:00:04]} 88. Ra5 {[%emt 0:00:41]} Rb4 {[%emt 0:00:19]} 89. Ra3 {[%emt 0:00:01]} Rd4 {[%emt 0:00:07]} 90. Ke6 {[%emt 0:00:06]} Rd3 {[%emt 0:00:03]} 91. Ke5 {[%emt 0:00:11]} Rd7 {[%emt 0:00:08]} 92. Ra4 {[%emt 0:00:10]} Rb7 {[%emt 0:00:08]} 93. Ra3 {[%emt 0:00:12]} Rxa7 {[%emt 0:02:08]} 94. Rxa7+ {[%emt 0:00:05]} Kxa7 {[%emt 0:00:01]} 95. Kd4 {[%emt 0:00:11]} Kb6 {[%emt 0:00:03]} 96. Kc4 {[%emt 0:00:06]} Kc6 {[%emt 0:00:03]} 1/2-1/2

[Event "2nd European Youth GP 2017"]
[Site "Jermuk"]
[Date "2017.10.09"]
[Round "6"]
[White "Nesterov, Arseniy"]
[Black "Shubin, Kirill"]
[Result "1-0"]
[ECO "E11"]
[WhiteElo "2350"]
[BlackElo "2359"]
[Annotator "NA"]
[PlyCount "79"]
[EventDate "2017.??.??"]
[EventType "tourn"]
[EventCountry "ARM"]
[SourceTitle "playchess.com"]
[Source "ChessBase"]
[SourceQuality "1"]
[TimeControl "5400+30"]

1. d4 {[%emt 0:00:00]} e6 {[%emt 0:00:03]} 2. c4 {[%emt 0:00:00]} Nf6 {[%emt 0:00:04]} 3. Nf3 {[%emt 0:00:00]} Bb4+ {[%emt 0:00:07]} 4. Bd2 {[%emt 0:00:00]} a5 {[%emt 0:00:07]} 5. g3 {[%emt 0:01:50]} d6 {[%emt 0:00:39]} 6. Bg2 {[%emt 0:01:18]} Nbd7 {[%emt 0:00:07]} 7. O-O {[%emt 0:00:34]} e5 {[%emt 0:00:07]} 8. Nc3 {[%emt 0:02:17]} exd4 {[%emt 0:00:15]} 9. Nxd4 {[%emt 0:00:12]} O-O {[%emt 0:00:30]} 10. Nd5 {[%emt 0:03:19] E11: Bogo-Indian} Bxd2 {[%emt 0:05:37] LiveBook: 9 Games} 11. Qxd2 {[%emt 0:00:05]} c6 {[%emt 0:08:41]} 12. Nc3 {[%emt 0:01:12]} Ne5 $146 {[%emt 0:11:46] [#]} ({Predecessor:} 12... Nc5 13. Nb3 Be6 14. Rfd1 Nxb3 15. axb3 Qb6 16. Qc2 Rfd8 17. Rd2 d5 {½-½ (102) Sargissian,G (2618)-Spraggett,K (2536) Moscow 2004}) 13. b3 $1 {[%emt 0:00:45]} h5 {[%emt 0:05:46]} 14. Rfd1 {[%emt 0:03:25]} Qc7 {[%emt 0:06:36]} 15. Nf3 {[%emt 0:01:00]} Nxf3+ {[%emt 0:02:01]} 16. Bxf3 {[%emt 0:00:11]} Rd8 {[%emt 0:00:04]} 17. Qf4 {[%emt 0:04:34]} Qe7 {[%emt 0:00:13]} 18. Rd2 {[%emt 0:00:46]} Bg4 {[%emt 0:06:45]} 19. Rad1 {[%emt 0:11:35]} Bxf3 {[%emt 0:02:17]} 20. exf3 {[%emt 0:00:09]} Ne8 {[%emt 0:01:46]} 21. Ne4 {[%emt 0:01:29]} a4 {[%emt 0:00:48]} 22. Nxd6 {[%emt 0:02:09]} Nxd6 {[%emt 0:00:07]} 23. Rxd6 {[%emt 0:00:03]} Rxd6 {[%emt 0:02:23]} 24. Rxd6 {[%emt 0:00:12]} axb3 {[%emt 0:01:29]} 25. axb3 {[%emt 0:00:08]} h4 {[%emt 0:06:51]} 26. Kg2 {[%emt 0:03:00]} hxg3 {[%emt 0:00:21]} 27. hxg3 {[%emt 0:00:13]} Re8 {[%emt 0:06:37]} 28. c5 {[%emt 0:03:38]} f6 {[%emt 0:04:12]} 29. b4 {[%emt 0:02:47]} Qf7 {[%emt 0:00:25]} 30. Qd4 {[%emt 0:00:59]} Re1 {[%emt 0:01:26]} 31. Qd2 {[%emt 0:01:32]} Re8 {[%emt 0:00:29]} 32. Qd3 {[%emt 0:02:14]} Re1 {[%emt 0:01:15]} 33. Rd8+ {[%emt 0:03:27]} Re8 {[%emt 0:00:08]} 34. Rd4 {[%emt 0:00:11]} Re7 {[%emt 0:00:49]} 35. Rh4 {[%emt 0:01:20]} g6 {[%emt 0:00:22]} 36. Rd4 {[%emt 0:00:44]} Kg7 {[%emt 0:00:22]} 37. Rd6 {[%emt 0:00:34]} Rc7 {[%emt 0:01:42]} 38. Qd4 $18 {[%emt 0:01:53]} Re7 {[%emt 0:00:10]} 39. g4 {[%emt 0:03:08]} g5 {[%emt 0:00:26]} 40. f4 {[%emt 0:01:18]} 1-0

[Event "2nd European Youth GP 2017"]
[Site "Jermuk"]
[Date "2017.10.09"]
[Round "6"]
[White "Gharibyan, Mamikon"]
[Black "Pultinevicius, Paulius"]
[Result "1-0"]
[ECO "E10"]
[WhiteElo "2346"]
[BlackElo "2387"]
[Annotator "NA"]
[PlyCount "55"]
[EventDate "2017.??.??"]
[EventType "tourn"]
[EventCountry "ARM"]
[SourceTitle "playchess.com"]
[Source "ChessBase"]
[SourceQuality "1"]
[TimeControl "5400+30"]

1. d4 {[%emt 0:00:00]} Nf6 {[%emt 0:00:08]} 2. Nf3 {[%emt 0:00:00]} e6 {[%emt 0:00:17]} 3. c4 {[%emt 0:00:12]} a6 {[%emt 0:00:38]} 4. e3 {[%emt 0:05:16]} d5 {[%emt 0:00:19]} 5. b3 {[%emt 0:05:25] LiveBook: 141 Games D30: Queen's Gambit Declined: Systems without Nc3} Bb4+ {[%emt 0:08:42]} (5... Nbd7 6. Bb2 b6 7. Nc3 Bb7 8. Bd3 Bd6 9. O-O O-O 10. Qe2 c5 11. cxd5 exd5 12. Rfd1 Re8 13. Rac1 Qb8 14. Bf5 cxd4 15. Rxd4 Ne5 16. Na4 b5 17. Nb6 Ra7 {½-½ (57) Laznicka,V (2664)-Naiditsch,A (2710) Linares 2017}) 6. Nbd2 {[%emt 0:06:20]} O-O {[%emt 0:20:09]} 7. Bb2 {[%emt 0:07:22]} b6 {[%emt 0:09:36]} 8. Bd3 {[%emt 0:02:50]} Bb7 {[%emt 0:10:48]} 9. O-O {[%emt 0:00:48]} Ne4 {[%emt 0:17:46]} 10. Rc1 $146 {[%emt 0:05:36]} ({Predecessor:} 10. Qc2 f5 11. a3 Bd6 12. b4 Nxd2 13. Nxd2 dxc4 14. Nxc4 Bxh2+ 15. Kxh2 {1-0 (30) Baumegger,S (2389)-Hoelzl,F (2325) Vienna 2010}) 10... Nd7 {[%emt 0:02:24]} 11. Qc2 {[%emt 0:11:24]} Ndf6 {[%emt 0:02:16]} 12. Rfd1 {[%emt 0:05:23]} Rc8 {[%emt 0:00:49]} 13. Nf1 {[%emt 0:09:40]} Be7 {[%emt 0:01:38]} 14. Qe2 {[%emt 0:02:09]} Ng4 {[%emt 0:02:32]} 15. Bxe4 $1 {[%emt 0:02:30]} dxe4 {[%emt 0:00:01]} 16. Ne5 {[%emt 0:00:09]} Nf6 {[%emt 0:04:35]} 17. Ng3 {[%emt 0:03:44]} Nd7 {[%emt 0:08:40]} 18. d5 $11 {[%emt 0:04:17]} Nxe5 {[%emt 0:00:44]} 19. Bxe5 {[%emt 0:00:13]} exd5 {[%emt 0:00:46]} 20. cxd5 {[%emt 0:02:34]} Ba3 {[%emt 0:05:09]} 21. Rc4 {[%emt 0:08:48]} Qe8 {[%emt 0:02:32]} 22. Ba1 {[%emt 0:14:10]} f5 {[%emt 0:00:28]} 23. Nh5 {[%emt 0:00:26]} Rf7 {[%emt 0:00:01]} 24. Bxg7 {[%emt 0:00:20]} Qb5 {[%emt 0:00:38]} 25. Bb2 {[%emt 0:01:10]} Bxb2 {[%emt 0:00:39]} 26. Qxb2 {[%emt 0:00:05]} Bxd5 {[%emt 0:00:04]} 27. a4 {[%emt 0:00:28]} Qa5 {[%emt 0:00:18]} 28. b4 {[%emt 0:00:24]} 1-0

[Event "2nd European Youth GP 2017"]
[Site "Jermuk"]
[Date "2017.10.11"]
[Round "7"]
[White "Pultinevicius, Paulius"]
[Black "Pogosyan, Stefan"]
[Result "1-0"]
[ECO "A05"]
[WhiteElo "2387"]
[BlackElo "2368"]
[Annotator "NA"]
[PlyCount "81"]
[EventDate "2017.??.??"]
[EventType "tourn"]
[EventCountry "ARM"]
[SourceTitle "playchess.com"]
[Source "ChessBase"]
[SourceQuality "1"]
[TimeControl "5400+30"]

1. Nf3 {[%emt 0:00:00]} Nf6 {[%emt 0:00:10]} 2. g3 {[%emt 0:00:00]} d5 {[%emt 0:01:03]} 3. Bg2 {[%emt 0:00:00]} b5 {[%emt 0:01:25]} 4. O-O {[%emt 0:01:09]} e6 {[%emt 0:00:31]} 5. d3 {[%emt 0:06:04]} Bb7 {[%emt 0:01:32]} 6. Nbd2 {[%emt 0:00:20]} Be7 {[%emt 0:00:15]} 7. e4 {[%emt 0:02:20]} c5 {[%emt 0:02:07]} 8. Re1 {[%emt 0:01:44]} Nc6 {[%emt 0:00:49]} 9. Qe2 {[%emt 0:04:51]} O-O {[%emt 0:07:26]} 10. e5 {[%emt 0:00:50]} Nd7 {[%emt 0:00:05]} 11. Nf1 {[%emt 0:01:33]} a5 {[%emt 0:02:04]} 12. h4 {[%emt 0:02:19]} a4 {[%emt 0:00:35]} 13. a3 {[%emt 0:12:47] C00: French: Unusual White 2nd moves} b4 {[%emt 0:04:31]} 14. Bf4 {[%emt 0:11:20]} c4 {[%emt 0:04:58] [#]} 15. d4 $146 {[%emt 0:17:59]} ({Predecessor:} 15. dxc4 Ba6 16. Ne3 bxa3 17. bxa3 Rc8 18. Qd2 dxc4 19. Red1 Nb6 20. Qe2 Qc7 {1-0 (40) Dvoretzky,M (2525)-Lebredo Zarragoitia,G (2385) Vilnius 1978}) 15... c3 {[%emt 0:02:25]} 16. bxc3 {[%emt 0:00:02]} b3 {[%emt 0:03:02]} 17. cxb3 {[%emt 0:03:45]} axb3 {[%emt 0:00:10]} 18. Reb1 {[%emt 0:00:55]} Ba6 {[%emt 0:02:15]} 19. Qe3 {[%emt 0:11:23]} Na5 {[%emt 0:01:11]} 20. N1d2 {[%emt 0:02:09]} Rb8 {[%emt 0:01:29]} 21. Bf1 {[%emt 0:03:25]} Bxf1 {[%emt 0:01:24]} 22. Kxf1 {[%emt 0:00:02]} Nb6 {[%emt 0:00:27]} 23. a4 {[%emt 0:03:07]} Qd7 {[%emt 0:01:27]} 24. Bg5 {[%emt 0:00:47] [#]} Bxg5 {[%emt 0:02:30]} (24... Nbc4 $1 $19 {[%cal Rc4e3] and Black stays clearly on top.} 25. Qe2 Bxg5 26. Nxc4 Nxc4 27. hxg5 Qc7) 25. hxg5 {[%emt 0:00:57]} b2 {[%emt 0:17:20]} 26. Ra2 {[%emt 0:00:09]} ({Avoid the trap} 26. Rxb2 $2 Nbc4 $19) 26... Nxa4 $17 {[%emt 0:00:06]} 27. Kg2 {[%emt 0:02:37]} Nb3 {[%emt 0:26:57]} 28. Rh1 {[%emt 0:01:51]} Nxd2 {[%emt 0:01:20]} 29. Nxd2 {[%emt 0:00:15]} Rfc8 {[%emt 0:01:35]} 30. Ra3 {[%emt 0:02:13]} Qb5 {[%emt 0:03:13]} 31. g4 {[%emt 0:00:47]} Kf8 {[%emt 0:05:46]} 32. Rxh7 {[%emt 0:04:26]} Ke7 {[%emt 0:02:22]} 33. g6 {[%emt 0:00:43]} Rh8 {[%emt 0:01:12]} 34. Rxg7 {[%emt 0:03:00]} b1=Q {[%emt 0:01:46]} 35. Rxf7+ {[%emt 0:00:09]} Ke8 {[%emt 0:00:22]} 36. Nxb1 {[%emt 0:00:05]} Qxb1 {[%emt 0:01:21]} 37. Rh7 {[%emt 0:00:03]} Rxh7 {[%emt 0:00:42]} 38. gxh7 {[%emt 0:00:00]} Kd7 {[%emt 0:00:42]} 39. Rxa4 {[%emt 0:00:07]} Rh8 {[%emt 0:00:05]} 40. Ra7+ {[%emt 0:00:16]} Kc6 {[%emt 0:00:04]} 41. Qe2 {[%emt 0:00:11]} 1-0

[Event "2nd European Youth GP 2017"]
[Site "Jermuk"]
[Date "2017.10.11"]
[Round "7"]
[White "Kacharava, Nikolozi"]
[Black "Gharibyan, Mamikon"]
[Result "1/2-1/2"]
[ECO "C54"]
[WhiteElo "2206"]
[BlackElo "2346"]
[Annotator "NA"]
[PlyCount "71"]
[EventDate "2017.??.??"]
[EventType "tourn"]
[EventCountry "ARM"]
[SourceTitle "playchess.com"]
[Source "ChessBase"]
[SourceQuality "1"]
[TimeControl "5400+30"]

1. e4 {[%emt 0:00:00]} e5 {[%emt 0:00:19]} 2. Nf3 {[%emt 0:00:00]} Nc6 {[%emt 0:00:07]} 3. Bc4 {[%emt 0:00:04]} Bc5 {[%emt 0:00:35]} 4. c3 {[%emt 0:00:25]} Nf6 {[%emt 0:00:38]} 5. d3 {[%emt 0:00:20]} d6 {[%emt 0:01:04]} 6. Nbd2 {[%emt 0:00:14]} O-O {[%emt 0:00:52]} 7. O-O {[%emt 0:00:13]} a5 {[%emt 0:00:36] C54: Giuoco Piano: 4 c3 Nf6, main lines with 5 d4 and 5 d3} 8. Re1 {[%emt 0:00:59]} h6 {[%emt 0:03:23]} (8... Be6 9. Bb5 Qb8 10. Nf1 Qa7 11. Be3 Bxe3 12. Nxe3 Ne7 13. a4 Ng6 14. Bc4 Bxc4 15. Nxc4 {½-½ (47) So,W (2810)-Ding,L (2777) Tbilisi 2017}) 9. Nf1 {[%emt 0:01:11]} Ne7 {[%emt 0:10:36]} 10. Ng3 $146 {[%emt 0:03:17]} ({Predecessor:} 10. d4 exd4 11. cxd4 Bb6 12. Ng3 Ng6 13. Bd3 Bg4 14. Be3 Ne7 15. h3 {1-0 (44) Plotkin,V (2191)-Derraugh,G Ottawa 2007}) 10... Ng6 {[%emt 0:01:49]} 11. h3 {[%emt 0:03:18]} c6 {[%emt 0:04:16]} 12. Bb3 {[%emt 0:06:06]} Re8 {[%emt 0:07:45]} 13. d4 {[%emt 0:04:13]} exd4 {[%emt 0:10:49]} 14. cxd4 {[%emt 0:02:29]} Bb6 {[%emt 0:04:09]} 15. Qc2 {[%emt 0:06:26]} Be6 {[%emt 0:04:34]} 16. Bxe6 {[%emt 0:01:50]} Rxe6 {[%emt 0:01:37]} 17. Be3 {[%emt 0:08:45]} d5 {[%emt 0:19:08]} 18. e5 {[%emt 0:03:29]} Nd7 {[%emt 0:00:40]} 19. Nf5 {[%emt 0:12:35]} Qf8 {[%emt 0:04:18]} 20. Rac1 {[%emt 0:05:55]} Bc7 {[%emt 0:03:06]} 21. Nh2 {[%emt 0:09:55]} c5 {[%emt 0:09:28]} 22. f4 $16 {[%emt 0:02:36]} Rc6 {[%emt 0:04:13]} 23. Qe2 {[%emt 0:08:51]} Bb6 {[%emt 0:01:15]} 24. Qg4 {[%emt 0:02:39]} h5 {[%emt 0:02:51]} 25. Qxh5 {[%emt 0:05:23]} cxd4 {[%emt 0:00:21]} 26. Rxc6 {[%emt 0:01:03]} bxc6 {[%emt 0:00:51]} 27. Bd2 {[%emt 0:00:13]} d3+ {[%emt 0:02:03]} 28. Kh1 {[%emt 0:00:26]} Nc5 {[%emt 0:00:15]} 29. Ng4 {[%emt 0:03:47]} Ne4 {[%emt 0:01:51]} 30. Rxe4 {[%emt 0:01:20]} dxe4 {[%emt 0:00:05]} 31. Nf6+ {[%emt 0:01:28]} gxf6 {[%emt 0:00:06]} 32. Nh6+ {[%emt 0:00:44]} Kg7 {[%emt 0:01:23]} 33. Nf5+ {[%emt 0:01:49]} Kg8 {[%emt 0:00:03]} 34. Nh6+ {[%emt 0:00:34]} Kg7 {[%emt 0:00:08]} 35. Nf5+ {[%emt 0:03:01]} Kg8 {[%emt 0:00:08]} 36. Nh6+ {[%emt 0:01:20]} 1/2-1/2

[Event "2nd European Youth GP 2017"]
[Site "Jermuk"]
[Date "2017.10.12"]
[Round "8"]
[White "Pultinevicius, Paulius"]
[Black "Kacharava, Nikolozi"]
[Result "1-0"]
[ECO "D41"]
[WhiteElo "2387"]
[BlackElo "2206"]
[Annotator "NA"]
[PlyCount "95"]
[EventDate "2017.??.??"]
[EventType "tourn"]
[EventCountry "ARM"]
[SourceTitle "playchess.com"]
[Source "ChessBase"]
[SourceQuality "1"]
[TimeControl "5400+30"]

1. Nf3 {[%emt 0:00:00]} Nf6 {[%emt 0:00:16]} 2. c4 {[%emt 0:00:00]} e6 {[%emt 0:00:17]} 3. Nc3 {[%emt 0:00:09]} d5 {[%emt 0:00:34]} 4. d4 {[%emt 0:03:04]} c5 {[%emt 0:00:36]} 5. cxd5 {[%emt 0:01:40]} Nxd5 {[%emt 0:00:16]} 6. e4 {[%emt 0:03:19]} Nxc3 {[%emt 0:00:18]} 7. bxc3 {[%emt 0:00:01]} cxd4 {[%emt 0:00:23]} 8. cxd4 {[%emt 0:00:19]} Bb4+ {[%emt 0:00:14]} 9. Bd2 {[%emt 0:00:01]} Bxd2+ {[%emt 0:00:22]} 10. Qxd2 {[%emt 0:00:01]} O-O {[%emt 0:00:20]} 11. Bc4 {[%emt 0:02:07]} Nd7 {[%emt 0:00:59] LiveBook: 326 Games} 12. O-O {[%emt 0:03:09] D41: Queen's Gambit Declined: Semi-Tarrasch with 5 cxd5} b6 {[%emt 0:00:44]} 13. Rac1 {[%emt 0:14:25]} (13. d5 Nc5 14. Rfe1 Bb7 15. Rad1 exd5 16. exd5 Qf6 17. Qe3 Rad8 18. h4 h6 19. h5 Rd6 {½-½ (55) Aronian,L (2799)-Matlakov,M (2728) Tbilisi 2017}) 13... Bb7 {[%emt 0:01:07]} 14. Rfe1 {[%emt 0:02:01]} Qe7 {[%emt 0:11:48]} 15. a4 $146 {[%emt 0:04:13]} ({Predecessor:} 15. d5 exd5 16. Bxd5 Bxd5 17. exd5 Qd8 18. d6 Nc5 19. Re7 {0-1 (39) Mas Recorda,P (2023)-Ruiz Mata,O (2314) Cerdanyola del Valles 2012}) 15... Rac8 {[%emt 0:24:51]} 16. Bd3 {[%emt 0:34:50]} Nf6 {[%emt 0:04:42]} 17. Rb1 {[%emt 0:05:39]} Qa3 {[%emt 0:04:31]} 18. a5 {[%emt 0:00:54]} b5 {[%emt 0:14:30]} 19. e5 {[%emt 0:13:35]} Ng4 {[%emt 0:08:38]} 20. Ng5 {[%emt 0:03:31]} h6 {[%emt 0:06:31]} 21. Bh7+ {[%emt 0:00:28]} Kh8 {[%emt 0:00:14]} 22. Be4 {[%emt 0:00:04]} hxg5 {[%emt 0:07:33]} 23. Bxb7 {[%emt 0:00:06]} Rc7 {[%emt 0:01:15]} 24. a6 {[%emt 0:01:46]} Qa4 {[%emt 0:01:53]} 25. d5 {[%emt 0:02:51]} Rc2 {[%emt 0:01:47]} 26. Qxg5 {[%emt 0:02:03]} Rxf2 $2 {[%emt 0:01:30]} (26... Qd4 $16 {is a better chance.} 27. Qh4+ Kg8) 27. h3 {[%emt 0:01:39]} Qd4 {[%emt 0:01:40]} 28. hxg4 {[%emt 0:00:33]} Rf4+ {[%emt 0:01:48]} 29. Kh1 {[%emt 0:00:19]} Rxg4 {[%emt 0:00:31] [#]} 30. Qe3 $1 {[%emt 0:00:01]} Rh4+ {[%emt 0:00:42]} 31. Kg1 {[%emt 0:00:01]} Qg4 {[%emt 0:00:29]} 32. d6 {[%emt 0:00:29]} Rh6 {[%emt 0:03:09]} 33. Bf3 {[%emt 0:01:46]} Qh4 {[%emt 0:00:41]} 34. Qe4 {[%emt 0:00:42]} Qh2+ {[%emt 0:00:51]} 35. Kf2 {[%emt 0:00:22]} f5 {[%emt 0:00:14]} 36. Qd4 {[%emt 0:00:16]} Rc8 {[%emt 0:00:47]} 37. Rbc1 {[%emt 0:00:23]} Rxc1 {[%emt 0:00:11]} 38. Rxc1 {[%emt 0:00:02]} Rh4 {[%emt 0:00:10]} 39. Qe3 {[%emt 0:01:59]} Rb4 {[%emt 0:01:11]} 40. d7 {[%emt 0:00:01]} Qh4+ {[%emt 0:00:28]} 41. Kg1 {[%emt 0:00:13]} Rd4 {[%emt 0:00:42]} 42. Rd1 {[%emt 0:00:32]} Rxd1+ {[%emt 0:00:33]} 43. Bxd1 {[%emt 0:00:01]} Kg8 {[%emt 0:00:23]} 44. Qd2 {[%emt 0:00:59]} Qd8 {[%emt 0:00:18]} 45. Qd6 {[%emt 0:00:08]} Kh7 {[%emt 0:00:27]} 46. Bb3 {[%emt 0:01:19]} Qg5 {[%emt 0:01:02]} 47. d8=Q {[%emt 0:00:41]} Qe3+ {[%emt 0:00:11]} 48. Kf1 {[%emt 0:00:17]} 1-0